{"text_format":"1","workbook":"xlsx","n_sheets":10,"sheets":["Instructions","Example","OT-Mileage Log","Continuation Log (1)","Continuation Log (2)","Continuation Log (3)","Continuation Log (4)","Continuation Log (5)","Continuation Log (6)","Continuation Log (7)"],"not_rendered":{"charts":0,"images":0,"macros":1,"external_links":0,"defined_names":1,"comments":0,"pivot_tables":0},"unopened":[],"bounds":{"document_bytes":16777216,"sheet_cells":100000,"rows_first":2000,"rows_last":500,"rows_between":2000,"halvings":0,"cell_chars":16384,"cell_head_chars":4096},"cells_cut":0,"cells_raw":0,"read":"whole","date_system":"1900"}

{"sheet":"Instructions","index":0,"n_rows":0,"n_cols":0,"rows_kept":0,"cut":false,"hidden":false,"merged":[]}

{"sheet":"Example","index":1,"n_rows":27,"n_cols":14,"rows_kept":27,"cut":false,"hidden":false,"merged":[[20,1,20,3],[20,4,20,5],[21,1,21,3],[21,4,21,5],[22,1,22,3],[22,4,22,5],[17,1,17,3],[17,4,17,5],[18,1,18,3],[18,4,18,5],[19,1,19,3],[19,4,19,5],[14,1,14,3],[14,4,14,5],[15,4,15,5],[15,1,15,3],[16,1,16,3],[16,4,16,5],[11,1,11,3],[11,4,11,5],[12,1,12,3],[12,4,12,5],[13,1,13,3],[13,4,13,5],[8,4,8,5],[8,1,8,3],[9,1,9,3],[9,4,9,5],[10,2,10,3],[10,4,10,5],[5,1,5,3],[5,4,5,5],[6,1,6,3],[6,4,6,5],[7,1,7,3],[7,4,7,5],[2,1,2,3],[2,4,2,5],[3,1,3,3],[3,4,3,5],[4,1,4,3],[4,4,4,5],[0,0,0,1],[0,2,0,7],[0,8,0,9],[0,10,0,13],[1,2,1,7],[1,8,1,9],[1,10,1,13],[1,0,1,1],[26,0,26,13],[23,3,23,6],[23,10,23,12],[24,0,24,9],[24,10,24,12],[25,0,25,9],[25,10,25,12]]}
["Agency Name",null,"Anytown Police Department",null,null,null,null,null,"Log Start Date",null,"2025-01-01"]
["Subrecipient Number",null,"240999-01",null,null,null,null,null,"Log End Date",null,"2025-01-14"]
["DAR#","Employee Name",null,null,"Date Worked",null,"Total Hours","O/T $","ERE $","Total O/T $","Start Miles","End Miles","Total Miles","Total Miles Cost"]
["414524 Anytown PD ","John Smith",null,null,"2025-01-02",null,8,200,50,{"$f":"H4+I4","v":250},100,250,{"$f":"L4-K4","v":150},{"$f":"M4*0.67","v":100.5}]
["414526 Anytown PD ","Bob Jones",null,null,"2025-01-03",null,10,250,75,325,450,575,125,83.75]
[null,"Tony Black",null,null,"2025-01-03",null,10,250,75,325,1000,1300,300,201]
[null,"Marisa Ruiz",null,null,"2025-01-03",null,10,250,75,325,525,600,75,50.25]
["514524 Anytown PD","John Smith",null,null,"2025-01-14",null,8,200,50,250,150,300,150,100.5]
[null,null,null,null,null,null,null,null,null,0,null,null,0,0]
[null,null,null,null,null,null,null,null,null,0,null,null,0,0]
[null,null,null,null,null,null,null,null,null,0,null,null,0,0]
[null,null,null,null,null,null,null,null,null,0,null,null,0,0]
[null,null,null,null,null,null,null,null,null,0,null,null,0,0]
[null,null,null,null,null,null,null,null,null,0,null,null,0,0]
[null,null,null,null,null,null,null,null,null,0,null,null,0,0]
[null,null,null,null,null,null,null,null,null,0,null,null,0,0]
[null,null,null,null,null,null,null,null,null,0,null,null,0,0]
[null,null,null,null,null,null,null,null,null,0,null,null,0,0]
[null,null,null,null,null,null,null,null,null,0,null,null,0,0]
[null,null,null,null,null,null,null,null,null,0,null,null,0,0]
[null,null,null,null,null,null,null,null,null,0,null,null,0,0]
[null,null,null,null,null,null,null,null,null,0,null,null,0,0]
[null,null,null,null,null,null,null,null,null,0,null,null,0,0]
["TOTALS",null,null,"O/T and ERE Totals",null,null,null,{"$f":"SUM(H4:H23)","v":1150},325,1475,"Total Mileage",null,null,{"$f":"SUM(N4:N23)","v":536}]
[null,null,null,null,null,null,null,null,null,null,"Page Total",null,null,{"$f":"J24+N24","v":2011}]
[null,null,null,null,null,null,null,null,null,null,"14-Day Pay Period Total",null,null,{"$f":"J24+N24","v":2011}]
["AZDOHS Review/Date:"]

{"sheet":"OT-Mileage Log","index":2,"n_rows":29,"n_cols":11,"rows_kept":29,"cut":false,"hidden":false,"merged":[[28,0,28,10],[0,1,0,4],[0,5,0,6],[0,7,0,10],[1,1,1,4],[1,5,1,6],[1,7,1,10],[23,7,23,9],[23,2,23,3],[24,0,25,6],[24,7,24,9],[25,7,25,9],[26,0,26,10]]}
["Agency Name",null,null,null,null,"Log Start Date"]
["Subrecipient Number",null,null,null,null,"Log End Date"]
["DAR#","Employee Name","Date Worked","Total Hours","O/T $","ERE $","Total O/T $","Start Miles","End Miles","Total Miles","Total Miles Cost"]
[null,null,null,null,null,null,{"$f":"E4+F4","v":0},null,null,{"$f":"I4-H4","v":0},{"$f":"J4*0.67","v":0}]
[null,null,null,null,null,null,0,null,null,0,0]
[null,null,null,null,null,null,0,null,null,0,0]
[null,null,null,null,null,null,0,null,null,0,0]
[null,null,null,null,null,null,0,null,null,0,0]
[null,null,null,null,null,null,0,null,null,0,0]
[null,null,null,null,null,null,0,null,null,0,0]
[null,null,null,null,null,null,0,null,null,0,0]
[null,null,null,null,null,null,0,null,null,0,0]
[null,null,null,null,null,null,0,null,null,0,0]
[null,null,null,null,null,null,0,null,null,0,0]
[null,null,null,null,null,null,0,null,null,0,0]
[null,null,null,null,null,null,0,null,null,0,0]
[null,null,null,null,null,null,0,null,null,0,0]
[null,null,null,null,null,null,0,null,null,0,0]
[null,null,null,null,null,null,0,null,null,0,0]
[null,null,null,null,null,null,0,null,null,0,0]
[null,null,null,null,null,null,0,null,null,0,0]
[null,null,null,null,null,null,0,null,null,0,0]
[null,null,null,null,null,null,0,null,null,0,0]
["TOTALS",null,"O/T and ERE Totals",null,{"$f":"SUM(E4:E23)","v":0},0,0,"Total Mileage",null,null,{"$f":"SUM(K4:K23)","v":0}]
[null,null,null,null,null,null,null,"Page Total",null,null,{"$f":"G24+K24","v":0}]
[null,null,null,null,null,null,null,"14-Day Pay Period Total",null,null,{"$f":"G24+K24","v":0}]
["AZDOHS Review/Date:"]
[]
["If you have any questions contact AZDOHS Planning Staff:  https://azdohs.gov/agency-directory"]

{"sheet":"Continuation Log (1)","index":3,"n_rows":29,"n_cols":11,"rows_kept":29,"cut":false,"hidden":false,"merged":[[28,0,28,10],[0,1,0,4],[0,5,0,6],[0,7,0,10],[1,1,1,4],[1,5,1,6],[1,7,1,10],[23,7,23,9],[23,2,23,3],[24,0,25,6],[24,7,24,9],[25,7,25,9],[26,0,26,10]]}
["Agency Name",null,null,null,null,"Log Start Date"]
["Subrecipient Number",null,null,null,null,"Log End Date"]
["DAR#","Employee Name","Date Worked","Total Hours","O/T $","ERE $","Total O/T $","Start Miles","End Miles","Total Miles","Total Miles Cost"]
[null,null,null,null,null,null,{"$f":"E4+F4","v":0},null,null,{"$f":"I4-H4","v":0},{"$f":"J4*0.67","v":0}]
[null,null,null,null,null,null,0,null,null,0,0]
[null,null,null,null,null,null,0,null,null,0,0]
[null,null,null,null,null,null,0,null,null,0,0]
[null,null,null,null,null,null,0,null,null,0,0]
[null,null,null,null,null,null,0,null,null,0,0]
[null,null,null,null,null,null,0,null,null,0,0]
[null,null,null,null,null,null,0,null,null,0,0]
[null,null,null,null,null,null,0,null,null,0,0]
[null,null,null,null,null,null,0,null,null,0,0]
[null,null,null,null,null,null,0,null,null,0,0]
[null,null,null,null,null,null,0,null,null,0,0]
[null,null,null,null,null,null,0,null,null,0,0]
[null,null,null,null,null,null,0,null,null,0,0]
[null,null,null,null,null,null,0,null,null,0,0]
[null,null,null,null,null,null,0,null,null,0,0]
[null,null,null,null,null,null,0,null,null,0,0]
[null,null,null,null,null,null,0,null,null,0,0]
[null,null,null,null,null,null,0,null,null,0,0]
[null,null,null,null,null,null,0,null,null,0,0]
["TOTALS",null,"O/T and ERE Totals",null,{"$f":"SUM(E4:E23)","v":0},0,0,"Total Mileage",null,null,{"$f":"SUM(K4:K23)","v":0}]
[null,null,null,null,null,null,null,"Page Total",null,null,{"$f":"G24+K24","v":0}]
[null,null,null,null,null,null,null,"14-Day Pay Period Total",null,null,{"$f":"G24+K24","v":0}]
["AZDOHS Review/Date:"]
[]
["If you have any questions contact AZDOHS Planning Staff:  https://azdohs.gov/agency-directory"]

{"sheet":"Continuation Log (2)","index":4,"n_rows":29,"n_cols":11,"rows_kept":29,"cut":false,"hidden":false,"merged":[[28,0,28,10],[0,1,0,4],[0,5,0,6],[0,7,0,10],[1,1,1,4],[1,5,1,6],[1,7,1,10],[23,7,23,9],[23,2,23,3],[24,0,25,6],[24,7,24,9],[25,7,25,9],[26,0,26,10]]}
["Agency Name",null,null,null,null,"Log Start Date"]
["Subrecipient Number",null,null,null,null,"Log End Date"]
["DAR#","Employee Name","Date Worked","Total Hours","O/T $","ERE $","Total O/T $","Start Miles","End Miles","Total Miles","Total Miles Cost"]
[null,null,null,null,null,null,{"$f":"E4+F4","v":0},null,null,{"$f":"I4-H4","v":0},{"$f":"J4*0.67","v":0}]
[null,null,null,null,null,null,0,null,null,0,0]
[null,null,null,null,null,null,0,null,null,0,0]
[null,null,null,null,null,null,0,null,null,0,0]
[null,null,null,null,null,null,0,null,null,0,0]
[null,null,null,null,null,null,0,null,null,0,0]
[null,null,null,null,null,null,0,null,null,0,0]
[null,null,null,null,null,null,0,null,null,0,0]
[null,null,null,null,null,null,0,null,null,0,0]
[null,null,null,null,null,null,0,null,null,0,0]
[null,null,null,null,null,null,0,null,null,0,0]
[null,null,null,null,null,null,0,null,null,0,0]
[null,null,null,null,null,null,0,null,null,0,0]
[null,null,null,null,null,null,0,null,null,0,0]
[null,null,null,null,null,null,0,null,null,0,0]
[null,null,null,null,null,null,0,null,null,0,0]
[null,null,null,null,null,null,0,null,null,0,0]
[null,null,null,null,null,null,0,null,null,0,0]
[null,null,null,null,null,null,0,null,null,0,0]
[null,null,null,null,null,null,0,null,null,0,0]
["TOTALS",null,"O/T and ERE Totals",null,{"$f":"SUM(E4:E23)","v":0},0,0,"Total Mileage",null,null,{"$f":"SUM(K4:K23)","v":0}]
[null,null,null,null,null,null,null,"Page Total",null,null,{"$f":"G24+K24","v":0}]
[null,null,null,null,null,null,null,"14-Day Pay Period Total",null,null,{"$f":"G24+K24","v":0}]
["AZDOHS Review/Date:"]
[]
["If you have any questions contact AZDOHS Planning Staff:  https://azdohs.gov/agency-directory"]

{"sheet":"Continuation Log (3)","index":5,"n_rows":29,"n_cols":11,"rows_kept":29,"cut":false,"hidden":false,"merged":[[28,0,28,10],[0,1,0,4],[0,5,0,6],[0,7,0,10],[1,1,1,4],[1,5,1,6],[1,7,1,10],[23,7,23,9],[23,2,23,3],[24,0,25,6],[24,7,24,9],[25,7,25,9],[26,0,26,10]]}
["Agency Name",null,null,null,null,"Log Start Date"]
["Subrecipient Number",null,null,null,null,"Log End Date"]
["DAR#","Employee Name","Date Worked","Total Hours","O/T $","ERE $","Total O/T $","Start Miles","End Miles","Total Miles","Total Miles Cost"]
[null,null,null,null,null,null,{"$f":"E4+F4","v":0},null,null,{"$f":"I4-H4","v":0},{"$f":"J4*0.67","v":0}]
[null,null,null,null,null,null,0,null,null,0,0]
[null,null,null,null,null,null,0,null,null,0,0]
[null,null,null,null,null,null,0,null,null,0,0]
[null,null,null,null,null,null,0,null,null,0,0]
[null,null,null,null,null,null,0,null,null,0,0]
[null,null,null,null,null,null,0,null,null,0,0]
[null,null,null,null,null,null,0,null,null,0,0]
[null,null,null,null,null,null,0,null,null,0,0]
[null,null,null,null,null,null,0,null,null,0,0]
[null,null,null,null,null,null,0,null,null,0,0]
[null,null,null,null,null,null,0,null,null,0,0]
[null,null,null,null,null,null,0,null,null,0,0]
[null,null,null,null,null,null,0,null,null,0,0]
[null,null,null,null,null,null,0,null,null,0,0]
[null,null,null,null,null,null,0,null,null,0,0]
[null,null,null,null,null,null,0,null,null,0,0]
[null,null,null,null,null,null,0,null,null,0,0]
[null,null,null,null,null,null,0,null,null,0,0]
[null,null,null,null,null,null,0,null,null,0,0]
["TOTALS",null,"O/T and ERE Totals",null,{"$f":"SUM(E4:E23)","v":0},0,0,"Total Mileage",null,null,{"$f":"SUM(K4:K23)","v":0}]
[null,null,null,null,null,null,null,"Page Total",null,null,{"$f":"G24+K24","v":0}]
[null,null,null,null,null,null,null,"14-Day Pay Period Total",null,null,{"$f":"G24+K24","v":0}]
["AZDOHS Review/Date:"]
[]
["If you have any questions contact AZDOHS Planning Staff:  https://azdohs.gov/agency-directory"]

{"sheet":"Continuation Log (4)","index":6,"n_rows":29,"n_cols":11,"rows_kept":29,"cut":false,"hidden":false,"merged":[[28,0,28,10],[0,1,0,4],[0,5,0,6],[0,7,0,10],[1,1,1,4],[1,5,1,6],[1,7,1,10],[23,7,23,9],[23,2,23,3],[24,0,25,6],[24,7,24,9],[25,7,25,9],[26,0,26,10]]}
["Agency Name",null,null,null,null,"Log Start Date"]
["Subrecipient Number",null,null,null,null,"Log End Date"]
["DAR#","Employee Name","Date Worked","Total Hours","O/T $","ERE $","Total O/T $","Start Miles","End Miles","Total Miles","Total Miles Cost"]
[null,null,null,null,null,null,{"$f":"E4+F4","v":0},null,null,{"$f":"I4-H4","v":0},{"$f":"J4*0.67","v":0}]
[null,null,null,null,null,null,0,null,null,0,0]
[null,null,null,null,null,null,0,null,null,0,0]
[null,null,null,null,null,null,0,null,null,0,0]
[null,null,null,null,null,null,0,null,null,0,0]
[null,null,null,null,null,null,0,null,null,0,0]
[null,null,null,null,null,null,0,null,null,0,0]
[null,null,null,null,null,null,0,null,null,0,0]
[null,null,null,null,null,null,0,null,null,0,0]
[null,null,null,null,null,null,0,null,null,0,0]
[null,null,null,null,null,null,0,null,null,0,0]
[null,null,null,null,null,null,0,null,null,0,0]
[null,null,null,null,null,null,0,null,null,0,0]
[null,null,null,null,null,null,0,null,null,0,0]
[null,null,null,null,null,null,0,null,null,0,0]
[null,null,null,null,null,null,0,null,null,0,0]
[null,null,null,null,null,null,0,null,null,0,0]
[null,null,null,null,null,null,0,null,null,0,0]
[null,null,null,null,null,null,0,null,null,0,0]
[null,null,null,null,null,null,0,null,null,0,0]
["TOTALS",null,"O/T and ERE Totals",null,{"$f":"SUM(E4:E23)","v":0},0,0,"Total Mileage",null,null,{"$f":"SUM(K4:K23)","v":0}]
[null,null,null,null,null,null,null,"Page Total",null,null,{"$f":"G24+K24","v":0}]
[null,null,null,null,null,null,null,"14-Day Pay Period Total",null,null,{"$f":"G24+K24","v":0}]
["AZDOHS Review/Date:"]
[]
["If you have any questions contact AZDOHS Planning Staff:  https://azdohs.gov/agency-directory"]

{"sheet":"Continuation Log (5)","index":7,"n_rows":29,"n_cols":11,"rows_kept":29,"cut":false,"hidden":false,"merged":[[28,0,28,10],[0,1,0,4],[0,5,0,6],[0,7,0,10],[1,1,1,4],[1,5,1,6],[1,7,1,10],[23,7,23,9],[23,2,23,3],[24,0,25,6],[24,7,24,9],[25,7,25,9],[26,0,26,10]]}
["Agency Name",null,null,null,null,"Log Start Date"]
["Subrecipient Number",null,null,null,null,"Log End Date"]
["DAR#","Employee Name","Date Worked","Total Hours","O/T $","ERE $","Total O/T $","Start Miles","End Miles","Total Miles","Total Miles Cost"]
[null,null,null,null,null,null,{"$f":"E4+F4","v":0},null,null,{"$f":"I4-H4","v":0},{"$f":"J4*0.67","v":0}]
[null,null,null,null,null,null,0,null,null,0,0]
[null,null,null,null,null,null,0,null,null,0,0]
[null,null,null,null,null,null,0,null,null,0,0]
[null,null,null,null,null,null,0,null,null,0,0]
[null,null,null,null,null,null,0,null,null,0,0]
[null,null,null,null,null,null,0,null,null,0,0]
[null,null,null,null,null,null,0,null,null,0,0]
[null,null,null,null,null,null,0,null,null,0,0]
[null,null,null,null,null,null,0,null,null,0,0]
[null,null,null,null,null,null,0,null,null,0,0]
[null,null,null,null,null,null,0,null,null,0,0]
[null,null,null,null,null,null,0,null,null,0,0]
[null,null,null,null,null,null,0,null,null,0,0]
[null,null,null,null,null,null,0,null,null,0,0]
[null,null,null,null,null,null,0,null,null,0,0]
[null,null,null,null,null,null,0,null,null,0,0]
[null,null,null,null,null,null,0,null,null,0,0]
[null,null,null,null,null,null,0,null,null,0,0]
[null,null,null,null,null,null,0,null,null,0,{"$f":"J23*0.67","v":0}]
["TOTALS",null,"O/T and ERE Totals",null,{"$f":"SUM(E4:E23)","v":0},0,0,"Total Mileage",null,null,{"$f":"SUM(K4:K23)","v":0}]
[null,null,null,null,null,null,null,"Page Total",null,null,{"$f":"G24+K24","v":0}]
[null,null,null,null,null,null,null,"14-Day Pay Period Total",null,null,{"$f":"G24+K24","v":0}]
["AZDOHS Review/Date:"]
[]
["If you have any questions contact AZDOHS Planning Staff:  https://azdohs.gov/agency-directory"]

{"sheet":"Continuation Log (6)","index":8,"n_rows":29,"n_cols":11,"rows_kept":29,"cut":false,"hidden":false,"merged":[[28,0,28,10],[0,1,0,4],[0,5,0,6],[0,7,0,10],[1,1,1,4],[1,5,1,6],[1,7,1,10],[23,7,23,9],[23,2,23,3],[24,0,25,6],[24,7,24,9],[25,7,25,9],[26,0,26,10]]}
["Agency Name",null,null,null,null,"Log Start Date"]
["Subrecipient Number",null,null,null,null,"Log End Date"]
["DAR#","Employee Name","Date Worked","Total Hours","O/T $","ERE $","Total O/T $","Start Miles","End Miles","Total Miles","Total Miles Cost"]
[null,null,null,null,null,null,0,null,null,{"$f":"I4-H4","v":0},{"$f":"J4*0.67","v":0}]
[null,null,null,null,null,null,{"$f":"E5+F5","v":0},null,null,0,0]
[null,null,null,null,null,null,0,null,null,0,0]
[null,null,null,null,null,null,0,null,null,0,0]
[null,null,null,null,null,null,0,null,null,0,0]
[null,null,null,null,null,null,0,null,null,0,0]
[null,null,null,null,null,null,0,null,null,0,0]
[null,null,null,null,null,null,0,null,null,0,0]
[null,null,null,null,null,null,0,null,null,0,0]
[null,null,null,null,null,null,0,null,null,0,0]
[null,null,null,null,null,null,0,null,null,0,0]
[null,null,null,null,null,null,0,null,null,0,0]
[null,null,null,null,null,null,0,null,null,0,0]
[null,null,null,null,null,null,0,null,null,0,0]
[null,null,null,null,null,null,0,null,null,0,0]
[null,null,null,null,null,null,0,null,null,0,0]
[null,null,null,null,null,null,0,null,null,0,0]
[null,null,null,null,null,null,0,null,null,0,0]
[null,null,null,null,null,null,0,null,null,0,0]
[null,null,null,null,null,null,0,null,null,0,0]
["TOTALS",null,"O/T and ERE Totals",null,{"$f":"SUM(E4:E23)","v":0},0,0,"Total Mileage",null,null,{"$f":"SUM(K4:K23)","v":0}]
[null,null,null,null,null,null,null,"Page Total",null,null,{"$f":"G24+K24","v":0}]
[null,null,null,null,null,null,null,"14-Day Pay Period Total",null,null,{"$f":"G24+K24","v":0}]
["AZDOHS Review/Date:"]
[]
["If you have any questions contact AZDOHS Planning Staff:  https://azdohs.gov/agency-directory"]

{"sheet":"Continuation Log (7)","index":9,"n_rows":29,"n_cols":11,"rows_kept":29,"cut":false,"hidden":false,"merged":[[28,0,28,10],[0,1,0,4],[0,5,0,6],[0,7,0,10],[1,1,1,4],[1,5,1,6],[1,7,1,10],[23,7,23,9],[23,2,23,3],[24,0,25,6],[24,7,24,9],[25,7,25,9],[26,0,26,10]]}
["Agency Name",null,null,null,null,"Log Start Date"]
["Subrecipient Number",null,null,null,null,"Log End Date"]
["DAR#","Employee Name","Date Worked","Total Hours","O/T $","ERE $","Total O/T $","Start Miles","End Miles","Total Miles","Total Miles Cost"]
[null,null,null,null,null,null,{"$f":"E4+F4","v":0},null,null,{"$f":"I4-H4","v":0},{"$f":"J4*0.67","v":0}]
[null,null,null,null,null,null,0,null,null,0,0]
[null,null,null,null,null,null,0,null,null,0,0]
[null,null,null,null,null,null,0,null,null,0,0]
[null,null,null,null,null,null,0,null,null,0,0]
[null,null,null,null,null,null,0,null,null,0,0]
[null,null,null,null,null,null,0,null,null,0,0]
[null,null,null,null,null,null,0,null,null,0,0]
[null,null,null,null,null,null,0,null,null,0,0]
[null,null,null,null,null,null,0,null,null,0,0]
[null,null,null,null,null,null,0,null,null,0,0]
[null,null,null,null,null,null,0,null,null,0,0]
[null,null,null,null,null,null,0,null,null,0,0]
[null,null,null,null,null,null,0,null,null,0,0]
[null,null,null,null,null,null,0,null,null,0,0]
[null,null,null,null,null,null,0,null,null,0,0]
[null,null,null,null,null,null,0,null,null,0,0]
[null,null,null,null,null,null,0,null,null,0,0]
[null,null,null,null,null,null,0,null,null,0,0]
[null,null,null,null,null,null,0,null,null,0,0]
["TOTALS",null,"O/T and ERE Totals",null,{"$f":"SUM(E4:E23)","v":0},0,0,"Total Mileage",null,null,{"$f":"SUM(K4:K23)","v":0}]
[null,null,null,null,null,null,null,"Page Total",null,null,{"$f":"G24+K24","v":0}]
[null,null,null,null,null,null,null,"14-Day Pay Period Total",null,null,{"$f":"G24+K24","v":0}]
["AZDOHS Review/Date:"]
[]
["If you have any questions contact AZDOHS Planning Staff:  https://azdohs.gov/agency-directory"]